fUSD/lending_fUSD_20251210
["ID","MTS","AMOUNT","RATE_DAILY","PERIOD"]
[398095298,1765363935223,-500.0,0.00019178,2]
[398095299,1765363935231,-594.84,0.00019178,2]
[398095300,1765363935241,-2704.59,0.00019178,2]
[398095301,1765363935251,-672.92,0.00019178,2]
[398095302,1765363935264,-500.0,0.00019178,2]
[398095303,1765363935274,-1311.95,0.00019178,2]
[398095304,1765363935283,-500.0,0.00019178,2]
[398095305,1765363935293,-500.0,0.00019178,2]
[398095306,1765363935305,-536.09,0.00019178,2]
[398095307,1765363935315,-636.09,0.00019178,2]
[398095308,1765363935326,-500.0,0.00019178,2]
[398095309,1765363935336,-518.62,0.00019178,2]
[398095310,1765363935346,-2690.76,0.00019178,2]
[398095311,1765363935355,-539.25,0.00019178,2]
[398095312,1765363935367,-669.46,0.00019178,2]
[398095313,1765363935377,-500.0,0.00019178,2]
[398095314,1765363935387,-522.23,0.00019178,2]
[398095315,1765363935397,-633.04,0.00019178,2]
[398095316,1765363935408,-151.0,0.00019178,2]
[398095317,1765363935417,-600.0,0.00019178,2]
[398095318,1765363935426,-20040.26,0.00019178,2]
[398095319,1765363935435,-208.893103,0.00019178,2]
[398095320,1765363935444,-208.893103,0.00019178,2]
[398095321,1765363935453,-208.893103,0.00019178,2]
[398095322,1765363935463,-208.893103,0.00019178,2]
[398095323,1765363935472,-208.893103,0.00019178,2]
[398095324,1765363935483,-208.893103,0.00019178,2]
[398095325,1765363935493,-208.893103,0.00019178,2]
[398095326,1765363935510,-208.893103,0.00019178,2]
[398095327,1765363935519,-208.893103,0.00019178,2]
[398095328,1765363935529,-208.893103,0.00019178,2]
[398095329,1765363935538,-208.893103,0.00019178,2]
[398095330,1765363935550,-208.893103,0.00019178,2]
[398095331,1765363935559,-208.893103,0.00019178,2]
[398095332,1765363935570,-208.893103,0.00019178,2]
[398095333,1765363935579,-208.893103,0.00019178,2]
[398095334,1765363935589,-208.893103,0.00019178,2]
[398095335,1765363935598,-208.893103,0.00019178,2]
[398095336,1765363935606,-208.893103,0.00019178,2]
[398095337,1765363935616,-208.893103,0.00019178,2]
[398095338,1765363935625,-208.893094,0.00019178,2]
[398095339,1765363935636,-151.0,0.00019178,2]
[398095340,1765363935646,-151.0,0.00019178,2]
[398095341,1765363935657,-153.107467,0.00019178,2]
[398095342,1765363935669,-152.520217,0.00019178,2]
[398095343,1765363935678,-152.520217,0.00019178,2]
[398095344,1765363935690,-152.520217,0.00019178,2]
[398095345,1765363935701,-152.520217,0.00019178,2]
[398095346,1765363935712,-152.520217,0.00019178,2]
[398095347,1765363935722,-152.520217,0.00019178,2]
[398095348,1765363935732,-152.520217,0.00019178,2]
[398095349,1765363935741,-152.520217,0.00019178,2]
[398095350,1765363935751,-152.520217,0.00019178,2]
[398095351,1765363935759,-152.520217,0.00019178,2]
[398095352,1765363935769,-152.520217,0.00019178,2]
[398095353,1765363935778,-152.520217,0.00019178,2]
[398095354,1765363935787,-152.520217,0.00019178,2]
[398095355,1765363935796,-152.520217,0.00019178,2]
[398095356,1765363935805,-152.520217,0.00019178,2]
[398095357,1765363935814,-152.520217,0.00019178,2]
[398095358,1765363935824,-152.520217,0.00019178,2]
[398095359,1765363935832,-152.520217,0.00019178,2]
[398095360,1765363935841,-152.520217,0.00019178,2]
[398095361,1765363935850,-152.520212,0.00019178,2]
[398095362,1765363935859,-3021.534093,0.00019178,2]
[398095363,1765363935869,-3021.534093,0.00019178,2]
[398095364,1765363935878,-3021.534093,0.00019178,2]
[398095365,1765363935887,-3021.534093,0.00019178,2]
[398095366,1765363935895,-3021.534093,0.00019178,2]
[398095367,1765363935905,-3021.534093,0.00019178,2]
[398095368,1765363935914,-3021.534093,0.00019178,2]
[398095369,1765363935923,-3021.534093,0.00019178,2]
[398095370,1765363935932,-3021.534093,0.00019178,2]
[398095371,1765363935940,-3021.534093,0.00019178,2]
[398095372,1765363935950,-3021.534093,0.00019178,2]
[398095373,1765363935959,-3021.534093,0.00019178,2]
[398095374,1765363935968,-3021.534093,0.00019178,2]
[398095375,1765363935978,-3021.534093,0.00019178,2]
[398095376,1765363935989,-3021.534093,0.00019178,2]
[398095377,1765363935998,-3021.534093,0.00019178,2]
[398095378,1765363936007,-3021.534093,0.00019178,2]
[398095379,1765363936016,-3021.534093,0.00019178,2]
[398095380,1765363936026,-3021.534093,0.00019178,2]
[398095381,1765363936036,-3021.534095,0.00019178,2]
[398095382,1765363936044,-150.0,0.00019178,2]
[398095383,1765363936054,-564.0,0.00019178,2]
[398095384,1765363936064,-1096.0,0.0001919,2]
[398095385,1765363936073,-150.0,0.00019192,2]
[398095386,1765363936083,-50000.0,0.000192,7]
[398095387,1765363936093,-500.0,0.000192,7]
[398095388,1765363936102,-500.0,0.000192,7]
[398095389,1765363936111,-500.0,0.000192,7]
[398095390,1765363936122,-500.0,0.000192,7]
[398095391,1765363936134,-500.0,0.000192,7]
[398095392,1765363936147,-504.44,0.000192,7]
[398095393,1765363936156,-500.0,0.000192,7]
[398095394,1765363936166,-500.0,0.000192,7]
[398095395,1765363936175,-500.0,0.000192,7]
[398095396,1765363936184,-500.0,0.000192,7]
[398095397,1765363936194,-500.0,0.000192,7]
[398095398,1765363936203,-500.0,0.000192,7]
[398095399,1765363936212,-500.0,0.000192,7]
[398095400,1765363936221,-500.0,0.000192,7]
[398095401,1765363936230,-500.0,0.000192,7]
[398095402,1765363936239,-500.0,0.000192,7]
[398095403,1765363936248,-500.0,0.000192,7]
[398095404,1765363936257,-500.0,0.000192,7]
[398095405,1765363936265,-505.04,0.000192,7]
[398095406,1765363936275,-500.0,0.000192,7]
[398095407,1765363936284,-500.0,0.000192,7]
[398095408,1765363936293,-500.0,0.000192,7]
[398095409,1765363936302,-500.0,0.000192,7]
[398095410,1765363936311,-643.11,0.000192,7]
[398095411,1765363936320,-500.0,0.000192,7]
[398095412,1765363936329,-500.0,0.000192,7]
[398095413,1765363936339,-500.0,0.000192,7]
[398095414,1765363936348,-507.69,0.000192,7]
[398095415,1765363936357,-500.0,0.000192,7]
[398095416,1765363936366,-500.0,0.000192,7]
[398095417,1765363936375,-500.0,0.000192,7]
[398095418,1765363936385,-500.0,0.000192,7]
[398095419,1765363936394,-500.0,0.000192,7]
[398095420,1765363936403,-500.0,0.000192,7]
[398095421,1765363936412,-500.0,0.000192,7]
[398095422,1765363936421,-500.0,0.000192,7]
[398095423,1765363936430,-500.0,0.000192,7]
[398095424,1765363936439,-500.0,0.000192,7]
[398095425,1765363936448,-500.0,0.000192,7]
[398095426,1765363936457,-500.0,0.000192,7]
[398095427,1765363936466,-500.0,0.000192,7]
[398095428,1765363936475,-500.0,0.000192,7]
[398095429,1765363936485,-500.0,0.000192,7]
[398095430,1765363936494,-500.0,0.000192,7]
[398095431,1765363936503,-500.0,0.000192,7]
[398095432,1765363936512,-500.0,0.000192,7]
[398095433,1765363936521,-500.0,0.000192,7]
[398095434,1765363936531,-500.0,0.000192,7]
[398095435,1765363936540,-500.0,0.000192,7]
[398095436,1765363936550,-500.0,0.000192,7]
[398095437,1765363936559,-500.0,0.000192,7]
[398095438,1765363936568,-500.0,0.000192,7]
[398095439,1765363936577,-500.0,0.000192,7]
[398095440,1765363936587,-500.0,0.000192,7]
[398095441,1765363936597,-500.0,0.000192,7]
[398095442,1765363936787,-500.0,0.000192,7]
[398095443,1765363936797,-500.0,0.000192,7]
[398095444,1765363936807,-500.0,0.000192,7]
[398095445,1765363936819,-500.0,0.000192,7]
[398095446,1765363936834,-500.0,0.000192,7]
[398095447,1765363936844,-500.0,0.000192,7]
[398095448,1765363936854,-500.0,0.000192,7]
[398095449,1765363936864,-500.0,0.000192,7]
[398095450,1765363936874,-500.0,0.000192,7]
[398095451,1765363936889,-500.0,0.000192,7]
[398095452,1765363936901,-500.0,0.000192,7]
[398095453,1765363936910,-500.0,0.000192,7]
[398095454,1765363936920,-500.0,0.000192,7]
[398095455,1765363936930,-500.0,0.000192,7]
[398095456,1765363936940,-500.0,0.000192,7]
[398095457,1765363936949,-500.0,0.000192,7]
[398095458,1765363936959,-500.0,0.000192,7]
[398095459,1765363936969,-500.0,0.000192,7]
[398095460,1765363936980,-500.0,0.000192,7]
[398095461,1765363936991,-236.09,0.000192,7]
[398095462,1765363937000,-500.0,0.000192,7]
[398095463,1765363937010,-500.0,0.000192,7]
[398095464,1765363937019,-500.0,0.000192,7]
[398095465,1765363937030,-500.0,0.000192,7]
[398095466,1765363937039,-500.0,0.000192,7]
[398095467,1765363937048,-500.0,0.000192,7]
[398095468,1765363937060,-500.0,0.000192,7]
[398095469,1765363937069,-500.0,0.000192,7]
[398095470,1765363937078,-500.0,0.000192,7]
[398095471,1765363937087,-500.0,0.000192,7]
[398095472,1765363937097,-500.0,0.000192,7]
[398095473,1765363937106,-500.0,0.000192,7]
[398095474,1765363937115,-500.0,0.000192,7]
[398095475,1765363937124,-500.0,0.000192,7]
[398095476,1765363937133,-545.31,0.000192,7]
[398095477,1765363937143,-500.0,0.000192,7]
[398095478,1765363937152,-500.0,0.000192,7]
[398095479,1765363937162,-500.0,0.000192,7]
[398095480,1765363937171,-500.0,0.000192,7]
[398095481,1765363937180,-500.0,0.000192,7]
[398095482,1765363937190,-500.0,0.000192,7]
[398095483,1765363937200,-500.0,0.000192,7]
[398095484,1765363937209,-500.0,0.000192,7]
[398095485,1765363937218,-500.0,0.000192,7]
[398095486,1765363937227,-282.78,0.000192,7]
[398095487,1765363937238,-456.0,0.000192,2]
[398095488,1765363937249,-152.0,0.00019201,6]
[398095489,1765363937260,-150.0,0.0001923,2]
[398095490,1765363937270,-1000.0,0.0001924,2]
[398095491,1765363937280,-1000.0,0.00019249,2]
[398095492,1765363937294,-150.0,0.00019252,2]
[398095493,1765363937306,-3859.0,0.00019253,2]
[398095494,1765363937315,-1000.0,0.00019257,2]
[398095495,1765363937327,-150.0,0.00019263,2]
[398095496,1765363937339,-1000.0,0.00019287,2]
[398095497,1765363937351,-500.0,0.00019315,2]
[398095498,1765363937360,-150.0,0.00019317,2]
[398095499,1765363937370,-1000.0,0.00019319,2]
[398095500,1765363937380,-152.0,0.00019342,7]
[398095501,1765363937391,-1000.0,0.00019344,2]
[398095502,1765363937400,-1000.0,0.00019353,2]
[398095503,1765363937410,-150.0,0.00019377,2]
[398095504,1765363937420,-3000.0,0.00019378,7]
[398095505,1765363937430,-1900.0,0.00019378,7]
[398095506,1765363937439,-1096.0,0.0001938,2]
[398095507,1765363937449,-1000.0,0.0001939,2]
[398095508,1765363937458,-1033.75172386,0.000194,14]
[398095509,1765363937468,-150.0,0.00019405,2]
[398095510,1765363937478,-1000.0,0.00019415,2]
[398095511,1765363937487,-1000.0,0.00019423,2]
[398095512,1765363937497,-150.0,0.00019424,2]
[398095513,1765363937506,-1000.0,0.00019438,2]
[398095514,1765363937516,-1000.0,0.00019439,2]
[398095515,1765363937526,-1000.0,0.00019442,2]
[398095516,1765363937536,-486.62538158,0.00019452,2]
[398095517,1765363937547,-947.85,0.00019452,2]
[398095518,1765363937558,-612.73061047,0.00019452,2]
[398095519,1765363937568,-613.00638163,0.00019452,2]
[398095520,1765363937579,-587.0,0.00019452,2]
[398095521,1765363937590,-501.33,0.00019452,2]
[398095522,1765363937600,-576.82,0.00019452,2]
[398095523,1765363937609,-532.94,0.00019452,2]
[398095524,1765363937620,-526.76,0.00019452,2]
[398095525,1765363937631,-685.62,0.00019452,2]
[398095526,1765363937641,-314.63166151,0.00019452,2]
[398095527,1765363937650,-778.96,0.00019452,2]
[398095528,1765363937660,-500.0,0.00019452,2]
[398095529,1765363937671,-594.25,0.00019452,2]
[398095530,1765363937682,-695.24,0.00019452,2]
[398095531,1765363937693,-571.54,0.00019452,2]
[398095532,1765363937705,-292.92889531,0.00019452,2]
[398095533,1765363937716,-500.0,0.00019452,2]
[398095534,1765363937727,-537.71,0.00019452,2]
[398095535,1765363937738,-526.55,0.00019452,2]
[398095536,1765363937749,-622.54,0.00019452,2]
[398095537,1765363937759,-500.0,0.00019452,2]
[398095538,1765363937770,-569.43,0.00019452,2]
[398095539,1765363937780,-500.0,0.00019452,2]
[398095540,1765363937790,-614.97,0.00019452,2]
[398095541,1765363937800,-521.75,0.00019452,2]
[398095542,1765363937811,-691.35,0.00019452,2]
[398095543,1765363937820,-500.0,0.00019452,2]
[398095544,1765363937830,-500.0,0.00019452,2]
[398095545,1765363937841,-831.61,0.00019452,2]
[398095546,1765363937852,-580.62,0.00019452,2]
[398095547,1765363937863,-607.34,0.00019452,2]
[398095548,1765363937875,-558.66,0.00019452,2]
[398095549,1765363937885,-500.0,0.00019452,2]
[398095550,1765363937895,-687.2,0.00019452,2]
[398095551,1765363937906,-697.92,0.00019452,2]
[398095552,1765363937916,-663.24,0.00019452,2]
[398095553,1765363937925,-500.0,0.00019452,2]
[398095554,1765363937935,-632.86,0.00019452,2]
[398095555,1765363937945,-516.81,0.00019452,2]
[398095556,1765363937954,-528.53,0.00019452,2]
[398095557,1765363937963,-588.94,0.00019452,2]
[398095558,1765363937973,-575.19,0.00019452,2]
[398095559,1765363937988,-550.51,0.00019452,2]
[398095560,1765363937998,-520.64,0.00019452,2]
[398095561,1765363938008,-1386.52,0.00019452,2]
[398095562,1765363938020,-626.72,0.00019452,2]
[398095563,1765363938031,-540.35,0.00019452,2]
[398095564,1765363938040,-500.0,0.00019452,2]
[398095565,1765363938051,-500.0,0.00019452,2]
[398095566,1765363938062,-1096.94,0.00019452,2]
[398095567,1765363938073,-547.45,0.00019452,2]
[398095568,1765363938083,-1026.31,0.00019452,2]
[398095569,1765363938092,-500.0,0.00019452,2]
[398095570,1765363938101,-500.0,0.00019452,2]
[398095571,1765363938114,-851.24,0.00019452,2]
[398095572,1765363938124,-504.48,0.00019452,2]
[398095573,1765363938134,-522.11,0.00019452,2]
[398095574,1765363938145,-610.27,0.00019452,2]
[398095575,1765363938156,-687.03,0.00019452,2]
[398095576,1765363938167,-659.53,0.00019452,2]
[398095577,1765363938177,-1423.99,0.00019452,2]
[398095578,1765363938188,-605.66,0.00019452,2]
[398095579,1765363938198,-535.23,0.00019452,2]
[398095580,1765363938208,-500.0,0.00019452,2]
[398095581,1765363938219,-943.64,0.00019452,2]
[398095582,1765363938229,-157.0,0.00019452,2]
[398095583,1765363938240,-605.73,0.00019452,2]
[398095584,1765363938251,-694.43,0.00019452,2]
[398095585,1765363938261,-2000.0,0.00019452,2]
[398095586,1765363938271,-534.57,0.00019452,2]
[398095587,1765363938281,-637.14,0.00019452,2]
[398095588,1765363938290,-452.39665529,0.00019452,2]
[398095589,1765363938300,-174.47381032,0.00019452,2]
[398095590,1765363938309,-1035.09,0.00019452,2]
[398095591,1765363938319,-500.0,0.00019452,2]
[398095592,1765363938328,-638.9,0.00019452,2]
[398095593,1765363938338,-590.56,0.00019452,2]
[398095594,1765363938347,-823.36,0.00019452,2]
[398095595,1765363938356,-610.31,0.00019452,2]
[398095596,1765363938365,-500.0,0.00019452,2]
[398095597,1765363938374,-620.79,0.00019452,2]
[398095598,1765363938384,-888.67,0.00019452,2]
[398095599,1765363938393,-500.0,0.00019452,2]
[398095600,1765363938403,-500.0,0.00019452,2]
[398095601,1765363938413,-601.0,0.00019452,2]
[398095602,1765363938422,-500.0,0.00019452,2]
[398095603,1765363938432,-619.05,0.00019452,2]
[398095604,1765363938442,-236.85080145,0.00019452,2]
[398095605,1765363938452,-718.66,0.00019452,2]
[398095606,1765363938461,-522.38,0.00019452,2]
[398095607,1765363938471,-575.76,0.00019452,2]
[398095608,1765363938480,-528.5,0.00019452,2]
[398095609,1765363938489,-500.0,0.00019452,2]
[398095610,1765363938499,-500.0,0.00019452,2]
[398095611,1765363938508,-582.05,0.00019452,2]
[398095612,1765363938517,-1023.47,0.00019452,2]
[398095613,1765363938526,-2989.18,0.00019452,2]
[398095614,1765363938536,-555.46,0.00019452,2]
[398095615,1765363938545,-500.0,0.00019452,2]
[398095616,1765363938554,-1304.2,0.00019452,2]
[398095617,1765363938563,-729.87,0.00019452,2]
[398095618,1765363938572,-2869.58,0.00019452,2]
[398095619,1765363938581,-500.0,0.00019452,2]
[398095620,1765363938591,-501.94,0.00019452,2]
[398095621,1765363938601,-658.56,0.00019452,2]
[398095622,1765363938610,-548.02,0.00019452,2]
[398095623,1765363938619,-970.77,0.00019452,2]
[398095624,1765363938628,-1025.9,0.00019452,2]
[398095625,1765363938638,-540.25,0.00019452,2]
[398095626,1765363938647,-555.46,0.00019452,2]
[398095627,1765363938657,-832.02,0.00019452,2]
[398095628,1765363938666,-635.2,0.00019452,2]
[398095629,1765363938676,-515.11,0.00019452,2]
[398095630,1765363938686,-557.58,0.00019452,2]
[398095631,1765363938695,-520.93,0.00019452,2]
[398095632,1765363938704,-612.86,0.00019452,2]
[398095633,1765363938714,-762.87,0.00019452,2]
[398095634,1765363938723,-2138.7,0.00019452,2]
[398095635,1765363938733,-695.06,0.00019452,2]
[398095636,1765363938742,-572.05,0.00019452,2]
[398095637,1765363938751,-765.27,0.00019452,2]
[398095638,1765363938762,-516.6,0.00019452,2]
[398095639,1765363938771,-1364.77,0.00019452,2]
[398095640,1765363938781,-951.41,0.00019452,2]
[398095641,1765363938790,-679.67,0.00019452,2]
[398095642,1765363938800,-718.05,0.00019452,2]
[398095643,1765363938810,-729.92,0.00019452,2]
[398095644,1765363938820,-531.49,0.00019452,2]
[398095645,1765363938829,-457.40006698,0.00019452,2]
[398095646,1765363938839,-503.74,0.00019452,2]
[398095647,1765363938848,-500.0,0.00019452,2]
[398095648,1765363938857,-641.54,0.00019452,2]
[398095649,1765363938868,-1067.97,0.00019452,2]
[398095650,1765363938878,-539.19,0.00019452,2]
[398095651,1765363938887,-2594.14,0.00019452,2]
[398095652,1765363938897,-500.0,0.00019452,2]
[398095653,1765363938906,-545.18,0.00019452,2]
[398095654,1765363938916,-1366.9,0.00019452,2]
[398095655,1765363938925,-780.91,0.00019452,2]
[398095656,1765363938934,-904.37,0.00019452,2]
[398095657,1765363938944,-500.0,0.00019452,2]
[398095658,1765363938954,-1011.3,0.00019452,2]
[398095659,1765363938963,-1977.85,0.00019452,2]
[398095660,1765363938973,-674.04,0.00019452,2]
[398095661,1765363938987,-530.92,0.00019452,2]
[398095662,1765363938997,-515.73,0.00019452,2]
[398095663,1765363939006,-379.98378664,0.00019452,2]
[398095664,1765363939015,-618.95,0.00019452,2]
[398095665,1765363939026,-746.65,0.00019452,2]
[398095666,1765363939036,-500.0,0.00019452,2]
[398095667,1765363939046,-562.39,0.00019452,2]
[398095668,1765363939056,-514.85,0.00019452,2]
[398095669,1765363939065,-526.22684594,0.00019452,2]
[398095670,1765363939074,-594.84,0.00019452,2]
[398095671,1765363939083,-2704.59,0.00019452,2]
[398095672,1765363939093,-672.92,0.00019452,2]
[398095673,1765363939103,-165.96938309,0.00019452,2]
[398095674,1765363939112,-1311.95,0.00019452,2]
[398095675,1765363939121,-646.50221911,0.00019452,2]
[398095676,1765363939131,-500.0,0.00019452,2]
[398095677,1765363939140,-536.09,0.00019452,2]
[398095678,1765363939150,-636.09,0.00019452,2]
[398095679,1765363939159,-500.0,0.00019452,2]
[398095680,1765363939168,-518.62,0.00019452,2]
[398095681,1765363939177,-2690.76,0.00019452,2]
[398095682,1765363939186,-539.25,0.00019452,2]
[398095683,1765363939195,-669.46,0.00019452,2]
[398095684,1765363939204,-522.23,0.00019452,2]
[398095685,1765363939295,-633.04,0.00019452,2]
[398095686,1765363939304,-600.0,0.00019452,2]
[398095687,1765363939314,-1000.0,0.00019463,2]
[398095688,1765363939323,-1000.0,0.00019478,2]
[398095689,1765363939333,-152.0,0.00019483,8]
[398095690,1765363939342,-150.0,0.00019487,2]
[398095691,1765363939351,-150.0,0.0001951,2]
[398095692,1765363939361,-2000.0,0.00019516,2]
[398095693,1765363939370,-502.52508238,0.00019516,2]
[398095694,1765363939379,-504.91228773,0.00019516,2]
[398095695,1765363939388,-164.88494871,0.00019516,2]
[398095696,1765363939397,-250.0,0.00019521,2]
[398095697,1765363939406,-150.0,0.00019532,2]
[398095698,1765363939415,-150.0,0.00019538,2]
[398095699,1765363939424,-1000.0,0.0001955,2]
[398095700,1765363939433,-150.0,0.00019559,2]
[398095701,1765363939442,-1000.0,0.00019566,2]
[398095702,1765363939451,-1096.0,0.0001957,2]
[398095703,1765363939461,-789.65255288,0.00019579,2]
[398095704,1765363939470,-150.0,0.00019596,2]
[398095705,1765363939479,-1000.0,0.00019616,2]
[398095706,1765363939488,-1894.60122218,0.00019616,2]
[398095707,1765363939497,-694.98536197,0.00019616,2]
[398095708,1765363939506,-512.547964,0.00019616,2]
[398095709,1765363939515,-1056.97207995,0.00019616,2]
[398095710,1765363939524,-2000.0,0.00019616,2]
[398095711,1765363939534,-1505.16385682,0.00019616,2]
[398095712,1765363939543,-507.82446485,0.00019616,2]
[398095713,1765363939552,-509.75272116,0.00019616,2]
[398095714,1765363939561,-944.8951178,0.00019616,2]
[398095715,1765363939570,-395.31624908,0.00019616,2]
[398095716,1765363939578,-2000.0,0.00019616,2]
[398095717,1765363939587,-1622.78754157,0.00019616,2]
[398095718,1765363939597,-225.84196936,0.00019616,2]
[398095719,1765363939606,-2000.0,0.00019616,2]
[398095720,1765363939616,-150.0,0.0001962,2]
[398095721,1765363939626,-152.0,0.00019624,9]
[398095722,1765363939635,-150.0,0.00019629,2]
[398095723,1765363939645,-1000.0,0.00019629,2]
[398095724,1765363939656,-1000.0,0.00019632,2]
[398095725,1765363939666,-150.0,0.0001964,2]
[398095726,1765363939677,-1000.0,0.00019688,2]
[398095727,1765363939688,-1000.0,0.00019723,2]
[398095728,1765363939700,-947.85,0.00019726,2]
[398095729,1765363939709,-587.0,0.00019726,2]
[398095730,1765363939720,-501.33,0.00019726,2]
[398095731,1765363939730,-576.82,0.00019726,2]
[398095732,1765363939740,-532.94,0.00019726,2]
[398095733,1765363939751,-526.76,0.00019726,2]
[398095734,1765363939760,-685.62,0.00019726,2]
[398095735,1765363939771,-778.96,0.00019726,2]
[398095736,1765363939781,-538.48094001,0.00019726,2]
[398095737,1765363939790,-594.25,0.00019726,2]
[398095738,1765363939799,-695.24,0.00019726,2]
[398095739,1765363939810,-571.54,0.00019726,2]
[398095740,1765363939820,-435.36306195,0.00019726,2]
[398095741,1765363939832,-537.71,0.00019726,2]
[398095742,1765363939842,-526.55,0.00019726,2]
[398095743,1765363939852,-622.54,0.00019726,2]
[398095744,1765363939862,-500.0,0.00019726,2]
[398095745,1765363939871,-569.43,0.00019726,2]
[398095746,1765363939880,-500.0,0.00019726,2]
[398095747,1765363939889,-614.97,0.00019726,2]
[398095748,1765363939898,-521.75,0.00019726,2]
[398095749,1765363939907,-691.35,0.00019726,2]
[398095750,1765363939918,-509.47464807,0.00019726,2]
[398095751,1765363939928,-513.68246918,0.00019726,2]
[398095752,1765363939937,-831.61,0.00019726,2]
[398095753,1765363939947,-580.62,0.00019726,2]
[398095754,1765363939957,-607.34,0.00019726,2]
[398095755,1765363939966,-558.66,0.00019726,2]
[398095756,1765363939976,-506.90359998,0.00019726,2]
[398095757,1765363939990,-687.2,0.00019726,2]
[398095758,1765363939999,-697.92,0.00019726,2]
[398095759,1765363940008,-663.24,0.00019726,2]
[398095760,1765363940017,-284.34398779,0.00019726,2]
[398095761,1765363940028,-632.86,0.00019726,2]
[398095762,1765363940037,-516.81,0.00019726,2]
[398095763,1765363940046,-528.53,0.00019726,2]
[398095764,1765363940057,-588.94,0.00019726,2]
[398095765,1765363940066,-575.19,0.00019726,2]
[398095766,1765363940075,-550.51,0.00019726,2]
[398095767,1765363940084,-520.64,0.00019726,2]
[398095768,1765363940093,-1386.52,0.00019726,2]
[398095769,1765363940103,-626.72,0.00019726,2]
[398095770,1765363940112,-540.35,0.00019726,2]
[398095771,1765363940122,-618.97395382,0.00019726,2]
[398095772,1765363940132,-381.21542048,0.00019726,2]
[398095773,1765363940142,-1096.94,0.00019726,2]
[398095774,1765363940151,-547.45,0.00019726,2]
[398095775,1765363940160,-1026.31,0.00019726,2]
[398095776,1765363940169,-431.51325846,0.00019726,2]
[398095777,1765363940179,-500.0,0.00019726,2]
[398095778,1765363940189,-851.24,0.00019726,2]
[398095779,1765363940198,-504.48,0.00019726,2]
[398095780,1765363940208,-522.11,0.00019726,2]
[398095781,1765363940217,-610.27,0.00019726,2]
[398095782,1765363940228,-687.03,0.00019726,2]
[398095783,1765363940238,-659.53,0.00019726,2]
[398095784,1765363940248,-1423.99,0.00019726,2]
[398095785,1765363940258,-605.66,0.00019726,2]
[398095786,1765363940267,-535.23,0.00019726,2]
[398095787,1765363940278,-630.17753247,0.00019726,2]
[398095788,1765363940287,-943.64,0.00019726,2]
[398095789,1765363940296,-605.73,0.00019726,2]
[398095790,1765363940307,-694.43,0.00019726,2]
[398095791,1765363940318,-2000.0,0.00019726,2]
[398095792,1765363940329,-534.57,0.00019726,2]
[398095793,1765363940339,-500.0,0.00019726,2]
[398095794,1765363940349,-500.0,0.00019726,2]
[398095795,1765363940359,-500.0,0.00019726,2]
[398095796,1765363940369,-500.0,0.00019726,2]
[398095797,1765363940380,-500.0,0.00019726,2]